bitfinex-derivatives/quotes_SOLF0:USTF0_20250310
["timestamp","ask_amount","ask_price","bid_price","bid_amount"]
[1741629514959,279.92,118.01,117.95,0.05400805]
[1741629515258,279.92,118.01,117.96,49.00602263]
[1741629515456,0.05396266,117.99,117.96,49.00602263]
[1741629516057,0.05396266,117.99,117.98,49.00602263]
[1741629516257,279.78,118.06,117.98,49.00602263]
[1741629516562,279.78,118.06,117.96,107.48602263]
[1741629517064,279.78,118.06,117.96,58.48]
[1741629517360,279.78,118.06,117.97,8.4804]
[1741629517564,0.05391005,118.02,118.0,0.05824745]
[1741629517962,0.05391005,118.02,117.95,8.4818]
[1741629518160,0.05391005,118.02,117.93,1.6959213]
[1741629518354,49.00602263,118.03,117.93,1.6959213]
[1741629518562,58.54,118.04,117.94,49.00602263]
[1741629519057,49.00602263,118.03,117.93,1.6959213]
[1741629519261,0.05509969,118.0,117.98,0.05564382]
[1741629519856,279.76,118.05,117.98,49.06166645]
[1741629520056,279.76,118.05,118.0,49.00602263]
[1741629520565,279.76,118.05,117.98,49.00602263]
[1741629520870,279.76,118.05,117.96,107.40602263]
[1741629521057,8.53208934,118.03,118.0,0.05773806]
[1741629521257,0.05548934,118.03,118.0,0.05773806]
[1741629521571,8.53218934,118.03,118.0,0.05773806]
[1741629521783,0.05548934,118.03,118.0,0.05773806]
[1741629522461,8.4779,118.01,118.0,0.05773806]
[1741629522663,0.05548934,118.03,117.93,1.6959213]
[1741629522967,8.4774,118.02,117.98,8.48]
[1741629523462,328.76602263,118.05,117.94,49.00602263]
[1741629523667,328.76602263,118.05,117.93,1.6959213]
[1741629523966,0.06482992,118.01,117.98,0.05526828]
[1741629524168,49.07085255,118.01,117.93,1.6959213]
[1741629524366,0.06482992,118.01,117.93,1.6959213]
[1741629524566,58.34,118.02,117.93,1.6959213]
[1741629525071,49.00602263,118.01,117.93,1.6959213]
[1741629525467,49.06874313,117.99,117.93,1.6959213]
[1741629525671,279.72,117.98,117.93,1.6959213]
[1741629526270,58.1,117.97,117.93,1.6959213]
[1741629526471,107.10602263,117.97,117.93,1.6959213]
[1741629526775,0.06540661,117.96,117.87,58.16]
[1741629526959,0.06540661,117.96,117.86,53.26672263]
[1741629527161,8.4848,117.92,117.83,49.00602263]
[1741629527466,279.72,117.91,117.85,49.00602263]
[1741629527667,279.72,117.93,117.85,49.00602263]
[1741629528065,0.06481236,117.9,117.88,0.05404675]
[1741629528264,0.06481236,117.9,117.89,8.4865]
[1741629528570,0.06481236,117.9,117.88,0.05404675]
[1741629530270,0.06481236,117.9,117.83,66.5105]
[1741629530467,0.06481236,117.9,117.83,8.4905]
[1741629530766,8.4912,117.83,117.79,8.543]
[1741629531070,279.78,117.85,117.79,8.543]
[1741629531372,279.78,117.85,117.77,49.00602263]
[1741629531669,0.06400949,117.83,117.81,0.06515113]
[1741629532269,8.4938,117.79,117.73,57.45482263]
[1741629532467,333.11912263,117.85,117.73,57.45482263]
[1741629532970,49.00602263,117.83,117.73,57.45482263]
[1741629533171,49.00602263,117.83,117.73,8.4488]
[1741629533469,8.55237031,117.79,117.77,0.02812926]
[1741629533770,0.05817031,117.79,117.77,0.02812926]
[1741629534471,0.05817031,117.79,117.78,8.4944]
[1741629535062,279.78,117.85,117.78,2.54]
[1741629535266,279.78,117.85,117.79,49.00602263]
[1741629535470,279.78,117.85,117.81,49.00602263]
[1741629535767,279.94,117.91,117.83,49.00602263]
[1741629536165,0.06057686,117.88,117.87,8.4874]
[1741629536370,0.06057686,117.88,117.86,0.05892341]
[1741629536565,0.06057686,117.88,117.86,8.54752341]
[1741629536771,7.686e-05,117.88,117.86,0.05892341]
[1741629537171,7.686e-05,117.88,117.87,8.4879]
[1741629538677,7.686e-05,117.88,117.87,63.94799122]
[1741629539178,7.686e-05,117.88,117.87,25.27939042]
[1741629539780,7.686e-05,117.88,117.87,8.4879]
[1741629540077,7.686e-05,117.88,117.86,8.54712341]
[1741629540274,7.686e-05,117.88,117.86,0.05892341]
[1741629541070,7.686e-05,117.88,117.87,8.4879]
[1741629541274,7.686e-05,117.88,117.87,14.95849248]
[1741629541468,7.686e-05,117.88,117.87,8.4879]
[1741629541981,7.686e-05,117.88,117.86,49.06494604]
[1741629541982,7.686e-05,117.88,117.86,0.05892341]
[1741629543779,7.686e-05,117.88,117.87,8.4879]
[1741629544282,7.686e-05,117.88,117.87,14.83178095]
[1741629544580,7.686e-05,117.88,117.87,24.99675935]
[1741629544780,7.686e-05,117.88,117.87,32.17712113]
[1741629544979,7.686e-05,117.88,117.87,14.83178095]
[1741629545178,7.686e-05,117.88,117.87,25.01916538]
[1741629545381,7.686e-05,117.88,117.87,83.21916538]
[1741629545772,4.3784,118.01,117.87,81.27096538]
[1741629545971,4.2365,118.02,117.94,49.00602263]
[1741629546177,4.2365,118.02,117.95,16.52853408]
[1741629546378,279.92,118.04,117.94,107.26602263]
[1741629546379,279.92,118.04,117.96,65.53455671]
[1741629546578,279.92,118.04,117.97,16.52853408]
[1741629546791,0.05846581,118.02,117.99,0.0629576]
[1741629547979,0.05846581,118.02,118.0,6.36588681]
[1741629548179,0.05846581,118.02,117.99,0.0629576]
[1741629548380,0.05846581,118.02,118.01,8.4779]
[1741629548580,0.05846581,118.02,118.01,6.36478012]
[1741629548981,0.05846581,118.02,117.99,8.5418576]
[1741629549178,6.581e-05,118.02,118.01,49.00602263]
[1741629549380,284.0765,118.09,118.01,65.54819817]
[1741629549581,284.0765,118.09,118.02,23.72850357]
[1741629549784,279.84,118.09,118.03,16.53546597]
[1741629549984,279.84,118.09,118.04,6.3597946]
[1741629550185,279.84,118.09,118.0,49.00602263]
[1741629550377,0.06311998,118.06,118.03,0.06024593]
[1741629552091,57.94,118.05,117.97,4.237]
[1741629552394,8.4773,118.02,117.97,8.4805]
[1741629552589,279.76,118.02,117.91,8.0893]
[1741629552792,279.76,118.02,117.95,8.4822]
[1741629553188,279.76,118.02,117.91,8.0893]
[1741629553388,0.06082884,118.0,117.92,6.20887995]
[1741629553593,57.78082884,118.0,117.9,49.00602263]
[1741629553788,57.72,118.0,117.91,13.39260692]
[1741629553994,57.72,118.0,117.91,7.18298692]
[1741629554190,49.00602263,117.99,117.91,7.18298692]
[1741629554401,49.00602263,117.99,117.89,57.72]
[1741629554807,0.05773317,117.95,117.93,0.06519703]
[1741629555003,279.81773317,117.95,117.93,0.06519703]
[1741629555311,8.4829,117.94,117.93,0.06519703]
[1741629555607,279.81773317,117.95,117.93,0.06519703]
[1741629556309,288.30013317,117.95,117.93,0.06519703]
[1741629556606,279.81773317,117.95,117.93,0.06519703]
[1741629557304,8.4829,117.94,117.93,0.06519703]
[1741629558210,8.4862,117.9,117.81,191.0]
[1741629558404,4.119,117.94,117.85,6.21676207]
[1741629558613,4.119,117.94,117.82,65.2825]
[1741629558614,57.0,117.93,117.82,65.2825]
[1741629558804,8.4869,117.89,117.82,65.2825]
[1741629559400,0.0585625,117.88,117.85,8.489]
[1741629559607,0.0585625,117.88,117.82,65.2825]
[1741629559806,0.0585625,117.88,117.86,8.488]
[1741629560110,0.0585625,117.88,117.82,65.2825]
[1741629560299,0.0585625,117.88,117.87,8.4879]
[1741629560507,0.0585625,117.88,117.82,65.2825]
[1741629560907,0.0585625,117.88,117.87,8.4879]
[1741629561210,4.119,117.94,117.86,49.00602263]
[1741629561409,4.119,117.94,117.89,8.4861]
[1741629561606,4.119,117.94,117.86,49.00602263]
[1741629562108,4.119,117.94,117.84,49.00602263]
[1741629562313,4.119,117.94,117.85,6.21859973]
[1741629562512,0.05841022,117.9,117.88,0.05938048]
[1741629562811,0.05841022,117.9,117.82,113.58852263]
[1741629563010,0.05841022,117.9,117.86,8.488]
[1741629563305,56.3,117.92,117.82,57.28852263]
[1741629563506,56.3,117.92,117.84,8.4898]
[1741629563712,8.4876,117.88,117.84,8.4898]
[1741629564111,0.05527411,117.89,117.82,57.28852263]
[1741629564308,0.05527411,117.89,117.83,6.22234077]
[1741629564507,0.05931464,117.87,117.82,57.28852263]
[1741629564812,0.05931464,117.87,117.83,6.22234655]
[1741629565009,0.05931464,117.87,117.82,53.25372263]
[1741629565214,0.05931464,117.87,117.86,8.4887]
[1741629565413,0.05931464,117.87,117.82,53.25372263]
[1741629565711,0.05931464,117.87,117.83,6.22562302]
[1741629565912,0.05931464,117.87,117.82,53.25372263]
[1741629566112,0.05931464,117.87,117.83,6.22569672]
[1741629566309,0.05931464,117.87,117.84,6.22696437]
[1741629566510,0.05931464,117.87,117.82,53.25372263]
[1741629566709,0.05931464,117.87,117.83,6.2269949]
[1741629566906,0.05931464,117.87,117.84,8.4895]
[1741629567113,0.05931464,117.87,117.79,4.0091]
[1741629567311,0.05931464,117.87,117.82,8.4915]
[1741629567613,0.05597678,117.84,117.79,4.0091]
[1741629567812,0.05597678,117.84,117.8,6.22852312]
[1741629568010,0.05597678,117.84,117.78,49.00602263]
[1741629568314,0.05597678,117.84,117.82,8.4912]
[1741629568515,0.05597678,117.84,117.78,49.00602263]
[1741629568704,8.54637678,117.84,117.79,6.09726889]
[1741629568905,0.05597678,117.84,117.78,49.00602263]
[1741629569313,8.54657678,117.84,117.78,49.00602263]
[1741629569519,0.05597678,117.84,117.8,49.00602263]
[1741629570215,0.05597678,117.84,117.78,49.00602263]
[1741629570413,0.05597678,117.84,117.79,6.0964791]
[1741629570608,0.05597678,117.84,117.78,49.00602263]
[1741629570814,0.05597678,117.84,117.79,6.09668803]
[1741629571110,0.05597678,117.84,117.83,8.4908]
[1741629571512,279.86,117.88,117.82,49.00602263]
[1741629571816,279.94,117.91,117.84,49.00602263]
[1741629572016,279.94,117.91,117.82,103.92602263]
[1741629572211,279.94,117.91,117.8,49.00602263]
[1741629572409,49.00602263,117.9,117.79,54.88]
[1741629572607,8.4891,117.86,117.84,0.05884021]
[1741629572816,0.06140717,117.87,117.84,0.05884021]
[1741629573118,0.06140717,117.87,117.86,8.4887]
[1741629573311,0.06140717,117.87,117.84,0.05884021]
[1741629574113,0.06140717,117.87,117.84,8.54854021]
[1741629574114,8.4887,117.86,117.84,8.54854021]
[1741629574311,54.88140717,117.87,117.77,4.3589]
[1741629574517,54.88140717,117.87,117.76,49.00602263]
[1741629574518,49.00602263,117.82,117.7,49.00602263]
[1741629574815,49.00602263,117.78,117.71,6.09690618]
[1741629575017,49.00602263,117.76,117.66,4.2846]
[1741629575216,49.00602263,117.74,117.67,6.09884194]
[1741629575412,49.00602263,117.72,117.64,20.84806319]
[1741629575609,112.32582263,117.71,117.64,20.84806319]
[1741629575815,0.05396571,117.69,117.6,49.00602263]
[1741629576015,49.00602263,117.68,117.59,4.2846]
[1741629576215,0.06133315,117.66,117.59,4.2846]
[1741629576423,329.14735578,117.66,117.59,4.2846]
[1741629576620,329.14735578,117.66,117.57,54.84]
[1741629576822,329.14735578,117.66,117.56,4.0318]
[1741629576823,280.08,117.66,117.56,4.0318]
[1741629577023,0.06504773,117.63,117.56,4.0318]
[1741629577319,8.5069,117.61,117.53,4.0007]
[1741629577518,54.84,117.63,117.56,1.70125893]
[1741629577722,0.06016927,117.58,117.56,1.70125893]
[1741629577924,280.08,117.59,117.55,8.511]
[1741629578122,0.06386033,117.58,117.53,4.0007]
[1741629578323,0.06386033,117.58,117.5,103.84602263]
[1741629578622,280.08,117.59,117.49,8.4443]
[1741629578825,0.05724413,117.55,117.49,63.2843]
[1741629579014,0.05724413,117.55,117.52,8.513]
[1741629579522,49.00602263,117.53,117.38,191.0]
[1741629579726,280.26,117.52,117.43,49.00602263]
[1741629579922,280.26,117.52,117.45,49.00602263]
[1741629580118,0.06259451,117.49,117.43,49.00602263]
[1741629580835,0.06259451,117.49,117.42,54.88]
[1741629581031,0.06259451,117.49,117.43,49.00602263]
[1741629581524,9.451e-05,117.49,117.47,49.00602263]
[1741629581729,9.451e-05,117.49,117.45,0.05980191]
[1741629583529,9.451e-05,117.49,117.45,49.06582454]
[1741629583829,9.451e-05,117.49,117.47,49.00602263]
[1741629584031,266.91489451,117.51,117.46,54.9]
[1741629584232,253.62119451,117.51,117.47,49.00602263]
[1741629584432,4.1839,117.62,117.49,49.00602263]
[1741629584433,280.46,117.56,117.49,49.00602263]
[1741629584729,49.00602263,117.61,117.49,49.00602263]
[1741629584730,280.46,117.58,117.5,54.9]
[1741629585325,0.0608305,117.55,117.5,54.9]
[1741629585530,0.0608305,117.55,117.53,0.05992504]
[1741629585832,0.0608305,117.55,117.54,8.5118]
[1741629586125,280.46,117.58,117.53,49.06594767]
[1741629586326,280.46,117.58,117.53,0.05992504]
[1741629586726,280.46,117.58,117.55,8.5104]
[1741629586927,280.46,117.58,117.53,0.05992504]
[1741629587329,280.52241563,117.58,117.53,0.05992504]
[1741629587727,8.51,117.57,117.53,0.05992504]
[1741629587930,329.52843826,117.58,117.53,0.05992504]
[1741629588235,49.00602263,117.56,117.47,8.4419]
[1741629588629,54.92,117.57,117.47,8.4419]
[1741629588630,54.92,117.57,117.47,57.44792263]
[1741629588823,63.4301,117.57,117.52,8.5129]
[1741629589022,63.4301,117.57,117.48,54.94]
[1741629589427,0.05688457,117.54,117.51,0.06341758]
[1741629590032,0.05688457,117.54,117.53,8.5125]
[1741629590931,8.457e-05,117.54,117.53,8.5125]
[1741629591831,8.457e-05,117.54,117.53,57.51852263]
[1741629592030,8.457e-05,117.54,117.53,115.01852263]
[1741629592236,280.64,117.61,117.53,106.50602263]
[1741629592435,280.64,117.61,117.55,49.00602263]
[1741629592629,280.64,117.61,117.56,54.94]
[1741629592831,8.5043,117.65,117.6,8.5074]
[1741629593134,289.1447,117.64,117.56,54.94]
[1741629593334,280.69451886,117.64,117.61,0.05732424]
[1741629593634,49.00602263,117.66,117.61,0.05732424]
[1741629593832,0.05436804,117.64,117.61,8.56352424]
[1741629594028,0.05436804,117.64,117.61,0.05732424]
[1741629594234,8.55896804,117.64,117.61,0.05732424]
[1741629594535,49.06039067,117.64,117.61,0.05732424]
[1741629594734,8.506,117.62,117.55,4.4128]
[1741629594937,49.00602263,117.64,117.55,4.4128]
[1741629595343,8.5061,117.62,117.55,4.4128]
[1741629595539,49.00602263,117.64,117.57,8.5095]
[1741629596039,8.5073,117.61,117.59,0.05358274]
[1741629597742,8.5074,117.6,117.59,0.05358274]
[1741629598038,280.64,117.61,117.57,8.5095]
[1741629598235,49.06402946,117.62,117.56,8.5099]
[1741629598439,8.5079,117.6,117.56,8.5099]
[1741629598638,8.5079,117.6,117.53,54.92]
[1741629598839,8.5079,117.6,117.56,8.5099]
[1741629599141,8.5091,117.58,117.53,54.92]
[1741629599640,0.05929424,117.59,117.54,0.0218435]
[1741629599833,49.00602263,117.6,117.54,0.0218435]
[1741629600034,280.64,117.61,117.54,0.0218435]
[1741629600035,0.06479786,117.58,117.54,0.0218435]
[1741629601844,9.786e-05,117.58,117.57,8.5096]
[1741629604149,4.0549,117.67,117.57,2.56]
[1741629604440,49.00602263,117.65,117.55,4.094]
[1741629604640,49.00602263,117.61,117.54,4.0123]
[1741629604842,49.00602263,117.59,117.49,57.47792263]
[1741629605140,49.00602263,117.57,117.49,4.094]
[1741629605345,49.06422763,117.55,117.53,0.06495089]
[1741629605547,103.98422763,117.55,117.43,53.38392263]
[1741629605843,103.92602263,117.55,117.44,59.3011]
[1741629606044,280.64,117.56,117.45,49.00602263]
[1741629606252,280.64,117.56,117.47,49.00602263]
[1741629606450,280.64,117.56,117.46,54.92]
[1741629606637,0.06040605,117.53,117.5,0.02169047]
[1741629606837,0.06040605,117.53,117.51,8.5133]
[1741629607047,0.06040605,117.53,117.5,0.02169047]
[1741629607641,8.5137,117.52,117.44,4.3811]
[1741629607845,49.00602263,117.53,117.43,4.3928]
[1741629608046,49.00602263,117.53,117.43,59.3128]
[1741629608248,280.64,117.56,117.45,49.00602263]
[1741629608542,280.64,117.56,117.43,108.31882263]
[1741629608749,0.05655869,117.52,117.46,49.00602263]
[1741629608951,0.05655869,117.52,117.47,54.92]
[1741629609547,5.869e-05,117.52,117.51,8.5139]
[1741629609742,280.64,117.56,117.43,53.39882263]
[1741629609743,280.64,117.56,117.49,54.92]
[1741629609947,49.00602263,117.57,117.46,103.92602263]
[1741629610246,280.74,117.56,117.46,103.92602263]
[1741629610553,49.00602263,117.55,117.49,8.5149]
[1741629610745,0.05736328,117.52,117.5,0.05547891]
[1741629611151,0.05736328,117.52,117.43,4.3928]
[1741629611450,49.00602263,117.53,117.43,4.3928]
[1741629611650,49.00602263,117.53,117.49,8.5151]
[1741629611951,49.00602263,117.53,117.44,54.92]
[1741629612250,335.66,117.56,117.45,49.00602263]
[1741629612545,2.198e-05,117.5,117.46,54.92]
[1741629612745,2.198e-05,117.5,117.45,49.00602263]
[1741629612951,2.198e-05,117.5,117.49,8.5154]
[1741629613549,2.198e-05,117.5,117.47,54.92]
[1741629613749,2.198e-05,117.5,117.43,53.39882263]
[1741629613750,2.198e-05,117.5,117.48,0.0566294]
[1741629614147,2.198e-05,117.5,117.47,54.92]
[1741629614453,2.198e-05,117.5,117.49,8.5154]
[1741629614750,2.198e-05,117.5,117.49,69.48001923]
[1741629615048,95.2176962,117.61,117.49,103.92602263]
[1741629615252,46.21167357,117.61,117.54,49.00602263]
[1741629615754,46.21167357,117.61,117.53,54.92]
[1741629616247,46.21167357,117.61,117.57,8.5091]
[1741629616444,0.05507613,117.58,117.57,8.5091]
[1741629617053,46.21167357,117.61,117.6,8.5074]
[1741629617651,92.42334716,117.62,117.6,6.08488794]
[1741629617854,92.42334716,117.62,117.61,8.5067]
[1741629618153,32.19354716,117.62,117.61,14.59126505]
[1741629618349,17.41844716,117.62,117.61,14.59126505]
[1741629618544,2.85644716,117.62,117.61,14.59126505]
[1741629618749,4.716e-05,117.62,117.61,14.59126505]
[1741629618949,1.369e-05,117.63,117.61,54.9]
[1741629619153,21.82374991,117.67,117.62,49.00602263]
[1741629619358,4.991e-05,117.67,117.64,49.00602263]
[1741629619553,4.991e-05,117.67,117.66,57.50912263]
[1741629619756,138.63502075,117.68,117.66,103.90602263]
[1741629619757,125.30127066,117.68,117.66,103.90602263]
[1741629620057,78.17797066,117.68,117.66,54.9]
[1741629620452,78.23569965,117.68,117.66,54.95366971]
[1741629620652,78.23569965,117.68,117.67,8.5024]
[1741629620961,61.12229965,117.68,117.66,0.05366971]
[1741629621750,65.56709965,117.68,117.59,54.88]
[1741629621956,69.72459965,117.68,117.59,54.88]
[1741629622163,69.66687066,117.68,117.59,54.88]
[1741629622750,69.66687066,117.68,117.6,49.00602263]
[1741629622951,69.66687066,117.68,117.59,54.88]
[1741629622952,0.0620814,117.65,117.62,49.06519828]
[1741629623152,8.14e-05,117.65,117.64,187.64104338]
[1741629623348,8.14e-05,117.65,117.64,196.14554338]
[1741629623855,280.72,117.73,117.64,381.20104338]
[1741629624155,46.21167357,117.75,117.71,49.00602263]
[1741629624347,138.63502075,117.77,117.73,49.00602263]
[1741629624549,138.63502075,117.77,117.72,103.86602263]
[1741629624550,138.63502075,117.77,117.75,49.00602263]
[1741629624754,138.63502075,117.77,117.74,54.86]
[1741629624953,138.69484489,117.77,117.74,0.05534978]
[1741629625353,110.60084489,117.77,117.75,54.86]
[1741629625559,217.11276792,117.78,117.77,8.4952]
[1741629625753,27.47991247,117.78,117.77,8.4952]
[1741629625957,27.47991247,117.78,117.76,49.00602263]
[1741629626666,13.60191849,117.78,117.77,8.4952]
[1741629626957,69.441234,117.79,117.77,49.00602263]
[1741629627158,49.77947903,117.79,117.78,8.4944]
[1741629628259,36.84237903,117.79,117.78,8.4944]
[1741629628461,24.06277903,117.79,117.78,76.46607652]
[1741629628652,324.20692189,117.8,117.79,8.4937]
[1741629628852,302.99172189,117.8,117.79,112.31972263]
[1741629629060,302.99172189,117.8,117.79,114.85972263]
[1741629629252,312.03215188,117.81,117.8,8.493]
[1741629629453,190.26032627,117.81,117.8,8.493]
[1741629629655,190.26032627,117.81,117.8,11.033]
[1741629630055,190.26032627,117.81,117.79,112.31952263]
[1741629630261,190.32253766,117.81,117.78,65.43167652]
[1741629630856,190.32253766,117.81,117.8,30.77774501]
[1741629631065,8.4944,117.78,117.77,0.05672933]
[1741629631264,239.32856029,117.81,117.77,0.05672933]
[1741629631964,49.00602263,117.79,117.68,49.00602263]
[1741629632258,49.00602263,117.76,117.66,191.0]
[1741629632761,49.00602263,117.74,117.64,54.78]
[1741629633068,49.00602263,117.72,117.69,17.23634208]
[1741629633256,49.060805,117.7,117.69,3.92034208]
[1741629633457,49.060805,117.7,117.68,0.05625173]
[1741629633659,49.00602263,117.7,117.61,63.286]
[1741629633856,49.00602263,117.72,117.61,63.286]
[1741629634063,49.00602263,117.74,117.62,49.00602263]
[1741629634261,49.00602263,117.72,117.62,49.00602263]
[1741629634467,49.00602263,117.72,117.61,63.286]
[1741629634660,49.00602263,117.72,117.69,59.23146061]
[1741629635059,8.5004,117.7,117.69,59.23146061]
[1741629635259,8.5004,117.7,117.69,59.28846144]
[1741629635665,49.00602263,117.73,117.69,59.28846144]
[1741629635863,49.00602263,117.75,117.69,114.04846144]
[1741629636164,0.0543635,117.73,117.69,59.23146061]
[1741629636361,49.00602263,117.72,117.71,0.06047023]
[1741629636567,49.00602263,117.72,117.69,59.23146061]
[1741629637770,8.5002,117.7,117.69,59.23146061]
[1741629637960,8.5002,117.7,117.69,52.63195325]
[1741629638155,8.5002,117.7,117.69,0.05949264]
[1741629638655,49.00602263,117.72,117.69,0.05949264]
[1741629638855,49.00602263,117.73,117.69,0.05949264]
[1741629639561,49.00602263,117.75,117.69,54.83949264]
[1741629639866,49.00602263,117.75,117.69,209.41797465]
[1741629640061,8.5002,117.7,117.69,154.63797465]
[1741629640868,8.5002,117.7,117.69,142.36021201]
[1741629641260,8.4993,117.72,117.69,142.36021201]
[1741629641464,0.04095517,117.73,117.69,142.36021201]
[1741629641860,8.5002,117.7,117.69,142.36021201]
[1741629642664,49.00602263,117.73,117.69,142.36021201]
[1741629643062,49.00602263,117.75,117.69,142.36021201]
[1741629643968,8.4988,117.72,117.71,0.05501704]
[1741629644269,145.50680657,117.77,117.71,0.05501704]
[1741629644676,8.4988,117.72,117.71,9.80660968]
[1741629644968,145.50680657,117.77,117.71,9.80660968]
[1741629645369,8.4988,117.72,117.71,9.80660968]
[1741629645774,8.4988,117.72,117.71,0.05501704]
[1741629647066,0.05417108,117.75,117.71,0.05501704]
[1741629647272,190.26032627,117.81,117.74,8.4972]
[1741629647575,8.4948,117.78,117.75,54.74]
[1741629647775,190.26032627,117.81,117.76,8.4959]
[1741629647971,190.26032627,117.81,117.75,54.74]
[1741629648172,190.26032627,117.81,117.76,49.00602263]
[1741629648474,54.94762627,117.81,117.8,57.49902263]
[1741629648680,40.27332627,117.81,117.8,112.23902263]
[1741629648869,40.27332627,117.81,117.8,106.28602263]
[1741629649069,40.27332627,117.81,117.8,54.74]
[1741629649269,12.07552627,117.81,117.8,106.28602263]
[1741629649576,462.18075087,117.82,117.81,8.4923]
[1741629649971,89.21713871,117.82,117.81,11.0323]
[1741629650573,89.21713871,117.82,117.8,188.12453746]
[1741629650876,89.21713871,117.82,117.81,55.31491292]
[1741629651975,74.32233871,117.82,117.81,57.85491292]
[1741629652278,74.32233871,117.82,117.81,66.34721292]
[1741629652771,74.32233871,117.82,117.81,179.27994777]
[1741629653375,74.32233871,117.82,117.81,233.97994777]
[1741629654072,82.81383871,117.82,117.81,233.97994777]
[1741629654378,74.32233871,117.82,117.81,233.97994777]
[1741629654570,82.81383871,117.82,117.81,233.97994777]
[1741629654771,74.32233871,117.82,117.81,233.97994777]
[1741629655177,82.81383871,117.82,117.81,179.27994777]
[1741629656279,74.32233871,117.82,117.81,179.27994777]
[1741629659584,74.32233871,117.82,117.81,187.77224777]
[1741629659775,74.32233871,117.82,117.81,190.31224777]
[1741629659975,74.32233871,117.82,117.81,269.33355196]
[1741629660488,74.32233871,117.82,117.81,260.84125196]
[1741629660985,74.32233871,117.82,117.81,269.33355196]
[1741629661384,74.32233871,117.82,117.81,258.30125196]
[1741629661587,74.32233871,117.82,117.81,266.79355196]
[1741629661990,74.32233871,117.82,117.81,269.33355196]
[1741629662284,0.06401503,117.82,117.81,269.33355196]
[1741629662489,3.871e-05,117.82,117.81,269.33355196]
[1741629663285,3.871e-05,117.82,117.81,258.30125196]
[1741629663492,462.11673584,117.84,117.81,260.84125196]
[1741629663693,462.11673584,117.84,117.81,258.30125196]
[1741629663891,462.11673584,117.84,117.82,8.4915]
[1741629664194,462.11673584,117.84,117.81,258.30125196]
[1741629664595,462.17960474,117.84,117.81,400.66146397]
[1741629665693,8.4912,117.83,117.81,400.66146397]
[1741629665897,462.17960474,117.84,117.81,400.66146397]
[1741629666098,462.17960474,117.84,117.82,179.27994777]
[1741629666592,462.17960474,117.84,117.82,10.52884777]
[1741629666895,57.49682263,117.83,117.82,4.777e-05]
[1741629667094,49.00602263,117.83,117.82,151.93356397]
[1741629667597,8.4908,117.83,117.82,151.93356397]
[1741629668790,462.17960474,117.84,117.82,151.93356397]
[1741629670398,462.17960474,117.84,117.8,54.65688338]
[1741629670693,442.20950474,117.84,117.81,49.00602263]
[1741629670898,366.82750474,117.84,117.8,54.65688338]
[1741629671397,366.82750474,117.84,117.83,8.4908]
[1741629671595,305.96390474,117.84,117.83,57.49682263]
[1741629671794,235.16770474,117.84,117.83,60.03682263]
[1741629671996,235.16770474,117.84,117.83,57.49682263]
[1741629672192,235.16770474,117.84,117.8,54.65688338]
[1741629672698,222.10890474,117.84,117.83,8.4908]
[1741629673196,222.10890474,117.84,117.82,43.34655779]
[1741629673399,222.10890474,117.84,117.82,34.85525779]
[1741629673594,222.10890474,117.84,117.83,49.00602263]
[1741629673899,222.10890474,117.84,117.83,60.03682263]
[1741629674196,222.10890474,117.84,117.82,34.85525779]
[1741629674385,222.10890474,117.84,117.83,54.58]
[1741629674590,222.10890474,117.84,117.83,352.63520056]
[1741629674987,222.10890474,117.84,117.83,298.05520056]
[1741629675193,222.10890474,117.84,117.83,352.63520056]
[1741629675403,230.59900474,117.84,117.83,352.63520056]
[1741629675799,222.10890474,117.84,117.83,154.50212528]
[1741629676691,222.10890474,117.84,117.83,62.17471894]
[1741629677596,230.59900474,117.84,117.83,7.59471894]
[1741629677799,271.11492737,117.84,117.82,242.48196275]
[1741629678000,8.4915,117.82,117.81,79.18208319]
[1741629678297,8.4915,117.82,117.69,49.00602263]
[1741629678298,329.00602263,117.82,117.67,49.00602263]
[1741629678498,8.4995,117.72,117.69,54.56]
[1741629678691,49.00602263,117.76,117.69,54.56]
[1741629679089,49.00602263,117.78,117.69,54.56]
[1741629679293,49.00602263,117.78,117.71,0.05759096]
[1741629679294,0.06322116,117.74,117.71,0.05759096]
[1741629679699,8.4986,117.73,117.71,0.05759096]
[1741629679997,0.06322116,117.74,117.71,0.05759096]
[1741629681097,8.4985,117.73,117.71,0.05759096]
[1741629681299,0.06322116,117.74,117.71,0.05759096]
[1741629681701,8.4988,117.72,117.71,9.096e-05]
[1741629681901,57.50482263,117.72,117.71,9.096e-05]
[1741629682208,8.5024,117.67,117.66,348.55257794]
[1741629682596,280.1,117.68,117.61,4.2764]